fUSD/lending_fUSD_20260407
["ID","MTS","AMOUNT","RATE_DAILY","PERIOD"]
[419936256,1775521833403,-185.122017,0.00014299,2]
[419936257,1775521833413,-184.924811,0.00014299,2]
[419936258,1775521833424,-166.66,0.00014384,2]
[419936259,1775521833434,-997.68,0.00014384,2]
[419936260,1775521833444,-166.66,0.00014409,2]
[419936261,1775521833453,-700.0,0.00014468,3]
[419936262,1775521833463,-715.38110102,0.00014482,2]
[419936288,1775521838444,-629.949,0.00014482,2]
[419936291,1775521838467,-505.0,0.00014482,2]
[419936292,1775521838477,-254.18043806,0.00014482,2]
[419936294,1775521838489,-1358.36788851,0.00014482,2]
[419936297,1775521838504,-2524.759898,0.00014482,2]
[419936299,1775521838514,-2464.0,0.00014498,5]
[419936301,1775521838523,-1976.0,0.00014498,5]
[419936303,1775521838532,-2000.0,0.00014587,2]
[419936305,1775521838541,-500.0,0.00014587,2]
[419936307,1775521838550,-350.0,0.00014594,2]
[419936309,1775521838559,-1481.23780761,0.00014678,2]
[419936311,1775521838568,-799.54513345,0.00014678,2]
[419936313,1775521838577,-200.0,0.00014678,2]
[419936315,1775521838586,-187.78006525,0.00014678,2]
[419936317,1775521838595,-169.167,0.00014693,2]
[419936319,1775521838604,-2000.0,0.000147,2]
[419936321,1775521838613,-2316.69,0.00014702,2]
[419936323,1775521838621,-162.0,0.0001472,2]
[419936325,1775521838630,-1573.0,0.0001472,2]
[419936327,1775521838640,-1573.0,0.0001472,2]
[419936329,1775521838649,-5987.63832559,0.00014766,2]
[419936331,1775521838658,-2413.0,0.00014826,2]
[419936333,1775521838667,-2000.0,0.0001483,2]
[419936335,1775521838676,-2000.0,0.0001483,2]
[419936337,1775521838685,-2000.0,0.0001483,2]
[419936339,1775521838694,-500.0,0.00014854,2]
[419936341,1775521838704,-200.0,0.00014854,2]
[419936342,1775521838714,-166.66,0.00014855,2]
[419936344,1775521838723,-500.0,0.00014855,2]
[419936346,1775521838732,-500.0,0.00014855,2]
[419936349,1775521838742,-200.0,0.00014855,2]
[419936351,1775521838751,-160.949,0.00014872,2]
[419936353,1775521838760,-435.43014351,0.00014872,2]
[419936355,1775521838770,-334.26277974,0.00014873,2]
[419936357,1775521838779,-1000.0,0.00014873,2]
[419936359,1775521838787,-193489.63894719,0.00014873,2]
[419936361,1775521838803,-2236.20363546,0.00014873,2]
[419936413,1775521840875,-11834.47254801,0.00014873,2]
[419936445,1775521842934,-313.11540083,0.00014873,2]
[419936446,1775521842989,-2263.64078674,0.00014873,2]
[419936447,1775521843148,-150.0,0.00013443,2]
[419936448,1775521843158,-3780.75132308,0.00014873,2]
[419936449,1775521843170,-712.40607935,0.00014873,2]
[419936450,1775521843186,-1458.670872,0.00014873,2]
[419936451,1775521843206,-2994.60849894,0.00014873,2]
[419936452,1775521843315,-15462.15756299,0.00014873,2]
[419936491,1775521845849,-205.79,0.00013699,2]
[419936493,1775521845858,-164.66,0.00014873,2]
[419936505,1775521845959,-371.095,0.00014873,2]
[419936507,1775521845970,-2435.31727346,0.00014873,2]
[419936512,1775521846231,-1028.73033201,0.00014873,2]
[419936513,1775521846341,-643.80513405,0.00014873,2]
[419936540,1775522138698,-565.20391192,0.000108,5]
[419936541,1775522844123,-579.33846309,0.00010551,2]
[419936542,1775522844145,-125.790226,0.00010551,2]
[419936546,1775523031941,-176.0,0.000106,5]
[419936547,1775523031952,-307.0,0.00010791,2]
[419936548,1775523031965,-160.59,0.00010791,2]
[419936549,1775523031976,-200.0,0.00010843,2]
[419936550,1775523031985,-150.0,0.00010981,2]
[419936551,1775523031994,-2000.0,0.00010988,2]
[419936552,1775523032003,-150.0,0.00011013,2]
[419936553,1775523032012,-200.46897877,0.00011013,2]
[419936554,1775523032021,-1052.6,0.00011089,2]
[419936555,1775523032030,-233.0,0.00011253,2]
[419936556,1775523032039,-1200.0,0.00011253,2]
[419936557,1775523032048,-3133.85931713,0.00011254,2]
[419936558,1775523032057,-1200.0,0.00011506,2]
[419936559,1775523032066,-300.0,0.00011506,2]
[419936560,1775523032076,-300.0,0.00011506,2]
[419936561,1775523032086,-250.0,0.00011506,2]
[419936562,1775523032096,-1402.96101294,0.00011507,2]
[419936563,1775523032108,-2798.87898706,0.00011507,2]
[419936564,1775523032120,-293.54777718,0.00011507,2]
[419936565,1775523032131,-150.0,0.00011605,2]
[419936566,1775523032141,-600.0,0.00011606,2]
[419936567,1775523032150,-186.91439661,0.00011606,2]
[419936568,1775523032159,-680.57979279,0.0001166,2]
[419936569,1775523032170,-600.0,0.0001166,2]
[419936570,1775523032180,-600.0,0.0001166,2]
[419936571,1775523032190,-600.0,0.0001166,2]
[419936572,1775523032200,-600.0,0.0001166,2]
[419936573,1775523032209,-500.0,0.00011673,2]
[419936574,1775523032218,-500.0,0.00011673,2]
[419936575,1775523032227,-410.38561367,0.00011673,2]
[419936576,1775523032236,-167.73939669,0.00011673,2]
[419936577,1775523032245,-160.39801811,0.00011673,2]
[419936579,1775523032255,-29649.82629475,0.00011673,2]
[419936585,1775523032345,-1281.47839901,0.00011673,2]
[419936590,1775523032403,-1085.39999998,0.00011673,2]
[419936591,1775523032430,-303.37368525,0.00011666,2]
[419936592,1775523032441,-5694.78706081,0.00011666,2]
[419936593,1775523032450,-48686.91993283,0.00011673,2]
[419936594,1775523032467,-12581.3581561,0.00011673,2]
[419936599,1775523038054,-500.0,0.00011672,2]
[419936600,1775523038063,-500.0,0.00011672,2]
[419936601,1775523038073,-500.0,0.00011672,2]
[419936602,1775523038083,-500.0,0.00011672,2]
[419936603,1775523038092,-500.0,0.00011672,2]
[419936604,1775523038103,-437.10716485,0.00011672,2]
[419936605,1775523038112,-609.09277529,0.00011672,2]
[419936606,1775523038122,-500.0,0.00011672,2]
[419936607,1775523038132,-500.0,0.00011672,2]
[419936608,1775523038142,-500.0,0.00011672,2]
[419936609,1775523038152,-500.0,0.00011672,2]
[419936610,1775523038162,-195.05699266,0.00011672,2]
[419936611,1775523038172,-500.0,0.00011672,2]
[419936612,1775523038182,-500.0,0.00011672,2]
[419936613,1775523038192,-428.03522177,0.00011672,2]
[419936614,1775523038202,-500.0,0.00011672,2]
[419936615,1775523038212,-500.0,0.00011672,2]
[419936616,1775523038222,-249.25286562,0.00011672,2]
[419936617,1775523038232,-500.0,0.00011672,2]
[419936618,1775523038241,-500.0,0.00011672,2]
[419936619,1775523038251,-433.50535888,0.00011672,2]
[419936620,1775523038261,-500.0,0.00011672,2]
[419936621,1775523038271,-500.0,0.00011672,2]
[419936622,1775523038281,-500.0,0.00011672,2]
[419936623,1775523038291,-500.0,0.00011672,2]
[419936624,1775523038301,-500.0,0.00011672,2]
[419936625,1775523038311,-500.0,0.00011672,2]
[419936626,1775523038320,-500.0,0.00011672,2]
[419936627,1775523038330,-500.0,0.00011672,2]
[419936628,1775523038340,-500.0,0.00011672,2]
[419936629,1775523038350,-500.0,0.00011672,2]
[419936630,1775523038359,-301.35603335,0.00011672,2]
[419936631,1775523038369,-500.0,0.00011672,2]
[419936632,1775523038379,-500.0,0.00011672,2]
[419936633,1775523038389,-500.0,0.00011672,2]
[419936634,1775523038398,-500.0,0.00011672,2]
[419936635,1775523038408,-500.0,0.00011672,2]
[419936636,1775523038418,-500.0,0.00011672,2]
[419936637,1775523038429,-500.0,0.00011672,2]
[419936638,1775523038438,-500.0,0.00011672,2]
[419936639,1775523038448,-500.0,0.00011672,2]
[419936640,1775523038458,-500.0,0.00011672,2]
[419936641,1775523038468,-500.0,0.00011672,2]
[419936642,1775523038477,-500.0,0.00011672,2]
[419936645,1775523038487,-311030.87689829,0.00011673,2]
[419936648,1775523038513,-341434.97695253,0.00011673,2]
[419936652,1775523038539,-500.0,0.00011673,2]
[419936654,1775523038551,-91379.68376651,0.00011673,2]
[419936657,1775523038561,-546.0,0.00011702,2]
[419936659,1775523038571,-1519.5043776,0.00011726,2]
[419936661,1775523038581,-153.37386469,0.00011766,2]
[419936663,1775523038590,-1853.352,0.00011772,2]
[419936665,1775523038600,-169.167,0.00011772,2]
[419936667,1775523038610,-1214.01619027,0.00011773,2]
[419936669,1775523038620,-5131.61754786,0.00011773,2]
[419936671,1775523038629,-4307.08457462,0.00011773,2]
[419936673,1775523038638,-532.43292435,0.00011773,2]
[419936675,1775523038648,-1202.2204262,0.00011773,2]
[419936677,1775523038658,-5140.48371257,0.00011773,2]
[419936679,1775523038668,-3269.0,0.00011836,2]
[419936681,1775523038678,-448.989,0.00011836,2]
[419936684,1775523038688,-494.63411955,0.00011865,2]
[419936686,1775523038698,-495.66786549,0.00011865,2]
[419936688,1775523038707,-500.0,0.00011865,2]
[419936690,1775523038716,-500.0,0.00011865,2]
[419936692,1775523038725,-500.0,0.00011865,2]
[419936694,1775523038735,-500.0,0.00011865,2]
[419936696,1775523038744,-500.0,0.00011865,2]
[419936698,1775523038753,-500.0,0.00011865,2]
[419936700,1775523038763,-500.0,0.00011865,2]
[419936702,1775523038772,-200.0,0.00011865,2]
[419936704,1775523038782,-500.0,0.00011865,2]
[419936706,1775523038792,-500.0,0.00011865,2]
[419936708,1775523038801,-500.0,0.00011865,2]
[419936709,1775523038811,-500.0,0.00011865,2]
[419936710,1775523038820,-500.0,0.00011865,2]
[419936711,1775523038830,-151.0,0.00011865,2]
[419936712,1775523038840,-151.0,0.00011865,2]
[419936713,1775523038849,-151.0,0.00011865,2]
[419936714,1775523038859,-151.0,0.00011865,2]
[419936715,1775523038869,-151.0,0.00011865,2]
[419936716,1775523038879,-151.0,0.00011865,2]
[419936717,1775523038888,-500.0,0.00011865,2]
[419936718,1775523038898,-151.0,0.00011865,2]
[419936719,1775523038907,-500.0,0.00011865,2]
[419936720,1775523038917,-151.0,0.00011865,2]
[419936721,1775523038927,-151.0,0.00011865,2]
[419936722,1775523038936,-500.0,0.00011865,2]
[419936723,1775523038946,-151.0,0.00011865,2]
[419936724,1775523038956,-151.0,0.00011865,2]
[419936725,1775523038966,-500.0,0.00011865,2]
[419936726,1775523038975,-151.0,0.00011865,2]
[419936727,1775523038985,-153.43679859,0.00011865,2]
[419936728,1775523038994,-500.0,0.00011865,2]
[419936729,1775523039005,-151.0,0.00011865,2]
[419936730,1775523039014,-151.0,0.00011865,2]
[419936731,1775523039024,-151.0,0.00011865,2]
[419936732,1775523039033,-151.0,0.00011865,2]
[419936733,1775523039042,-151.0,0.00011865,2]
[419936734,1775523039052,-151.0,0.00011865,2]
[419936735,1775523039061,-151.0,0.00011865,2]
[419936736,1775523039070,-151.0,0.00011865,2]
[419936737,1775523039080,-151.0,0.00011865,2]
[419936738,1775523039089,-1337.30371513,0.00011865,2]
[419936739,1775523039099,-151.0,0.0001187,2]
[419936740,1775523039109,-160.59,0.0001187,2]
[419936741,1775523039118,-1084.35002387,0.00011872,3]
[419936742,1775523039127,-895.44,0.00011872,2]
[419936743,1775523039137,-1084.35002386,0.00011872,3]
[419936744,1775523039146,-576.67433813,0.00011873,2]
[419936745,1775523039155,-500.0,0.00011873,2]
[419936746,1775523039165,-500.0,0.00011873,2]
[419936747,1775523039173,-500.52876797,0.00011873,2]
[419936748,1775523039183,-500.0,0.00011873,2]
[419936749,1775523039192,-500.0,0.00011873,2]
[419936750,1775523039201,-500.0,0.00011873,2]
[419936751,1775523039211,-500.52022278,0.00011873,2]
[419936752,1775523039220,-500.0,0.00011873,2]
[419936753,1775523039229,-500.0,0.00011873,2]
[419936754,1775523039238,-500.0,0.00011873,2]
[419936755,1775523039247,-500.0,0.00011873,2]
[419936756,1775523039259,-500.0,0.00011873,2]
[419936757,1775523039268,-500.0,0.00011873,2]
[419936758,1775523039278,-170.09504983,0.00011873,2]
[419936759,1775523039287,-500.0,0.00011873,2]
[419936760,1775523039297,-500.0,0.00011873,2]
[419936761,1775523039307,-500.0,0.00011873,2]
[419936762,1775523039316,-220.78759916,0.00011873,2]
[419936763,1775523039326,-167.67108237,0.00011873,2]
[419936764,1775523039337,-159.97650956,0.00011873,2]
[419936765,1775523039346,-164.42551869,0.00011873,2]
[419936766,1775523039356,-500.0,0.00011873,2]
[419936767,1775523039364,-500.0,0.00011873,2]
[419936768,1775523039374,-165.04780666,0.00011873,2]
[419936769,1775523039384,-500.0,0.00011873,2]
[419936770,1775523039393,-500.0,0.00011873,2]
[419936771,1775523039402,-150.0,0.000119,2]
[419936772,1775523039413,-1060.907,0.00011925,2]
[419936773,1775523039423,-895.44,0.00012146,2]
[419936774,1775523039433,-1000.0,0.00012221,2]
[419936775,1775523039442,-1000.0,0.00012221,2]
[419936776,1775523039451,-6312.49998751,0.00012321,2]
[419936777,1775523039461,-2000.0,0.00012362,2]
[419936778,1775523039470,-1680.0,0.00012378,2]
[419936779,1775523039479,-200.0,0.00012413,2]
[419936780,1775523039489,-1386.78395259,0.00012413,2]
[419936781,1775523039498,-895.44,0.0001242,2]
[419936782,1775523039507,-500.0,0.00012421,2]
[419936783,1775523039517,-1000.0,0.00012421,2]
[419936784,1775523039526,-246.11948731,0.00012421,2]
[419936785,1775523039536,-502.25926533,0.00012421,2]
[419936786,1775523039546,-955.14370669,0.00012421,2]
[419936787,1775523039556,-500.0,0.00012421,2]
[419936788,1775523039565,-500.26271237,0.00012421,2]
[419936789,1775523039575,-1000.0,0.00012421,2]
[419936790,1775523039584,-877.452931,0.00012421,2]
[419936791,1775523039594,-1000.0,0.00012421,2]
[419936792,1775523039603,-1000.0,0.00012421,2]
[419936793,1775523039613,-532.4329243,0.00012461,2]
[419936794,1775523039622,-222.1,0.00012514,2]
[419936795,1775523039632,-1400.0,0.00012637,2]
[419936796,1775523039642,-420.0,0.00012637,2]
[419936797,1775523039651,-300.0,0.00012637,2]
[419936798,1775523039661,-255.0,0.00012673,2]
[419936799,1775523039670,-895.44,0.00012694,2]
[419936800,1775523039680,-729.6901256,0.00012768,2]
[419936801,1775523039690,-22934.55,0.00012893,2]
[419936802,1775523039700,-4999.99,0.00012893,2]
[419936803,1775523039709,-1977.46,0.00012893,2]
[419936804,1775523039718,-150.99,0.00012893,2]
[419936805,1775523039727,-150.99,0.00012893,2]
[419936806,1775523039736,-431.65,0.00012893,2]
[419936807,1775523039746,-3000.05,0.00012893,2]
[419936808,1775523039755,-9999.99,0.00012893,2]
[419936809,1775523039765,-1481.3,0.00012893,2]
[419936810,1775523039774,-499.99,0.00012893,2]
[419936811,1775523039784,-1266.82,0.00012893,2]
[419936812,1775523039794,-157.0,0.000129,2]
[419936813,1775523039803,-157.0,0.000129,2]
[419936814,1775523039813,-160.59,0.00012949,2]
[419936815,1775523039822,-200.0,0.00012961,2]
[419936816,1775523039832,-154.00075718,0.00012961,2]
[419936817,1775523039842,-895.44,0.00012968,2]
[419936818,1775523039852,-1500.0,0.00012968,2]
[419936819,1775523039862,-1500.0,0.00012968,2]
[419936820,1775523039871,-26.76868582,0.00012968,2]
[419936824,1775523041784,-473.23131418,0.00012968,2]
[419936825,1775523041794,-339.71422921,0.00013,2]
[419936826,1775523041806,-161.28577079,0.00013,2]
[419936827,1775523041816,-160.0,0.00013126,2]
[419936828,1775523041826,-532.4329243,0.00013149,2]
[419936829,1775523041835,-167.9007,0.000132,2]
[419936830,1775523041844,-895.44,0.00013242,2]
[419936831,1775523041853,-13.96056025,0.00013252,2]
[419936832,1775523041865,-166.97274475,0.00013252,2]
[419936833,1775523041876,-150.0,0.0001329,2]
[419936834,1775523041885,-150.0,0.0001329,2]
[419936835,1775523041896,-150.23775673,0.0001329,2]
[419936836,1775523041905,-246.16007569,0.0001329,2]
[419936837,1775523041915,-296.71799963,0.0001329,2]
[419936838,1775523041925,-256.52934676,0.0001329,2]
[419936839,1775523041935,-153.19744012,0.0001329,2]
[419936840,1775523041944,-150.0,0.0001329,2]
[419936841,1775523041953,-153.96487141,0.0001329,2]
[419936842,1775523041962,-150.0,0.0001329,2]
[419936843,1775523041972,-234.76043191,0.0001329,2]
[419936844,1775523041983,-52.94764795,0.0001329,2]
[419936845,1775523041994,-150.0,0.0001329,2]
[419936846,1775523042003,-200.77226676,0.0001329,2]
[419936847,1775523042012,-150.0,0.0001329,2]
[419936848,1775523042021,-895.44,0.00013516,2]
[419936849,1775523042031,-1512.47134075,0.00013516,2]
[419936850,1775523042040,-696.53503661,0.00013516,2]
[419936851,1775523042080,-807.49525,0.00013516,2]
[419936852,1775523042092,-495.96971339,0.00013516,2]
[419936853,1775523042100,-287.12295447,0.00013536,2]
[419936854,1775523042325,-712.87704553,0.00013536,2]
[419936855,1775523042334,-2351.0,0.00013616,2]
[419936856,1775523042346,-500.0,0.00013698,2]
[419936857,1775523042356,-500.0,0.00013698,2]
[419936858,1775523042366,-500.0,0.00013698,2]
[419936859,1775523042376,-500.0,0.00013698,2]
[419936860,1775523042386,-500.0,0.00013698,2]
[419936861,1775523042397,-500.0,0.00013698,2]
[419936862,1775523042408,-500.0,0.00013698,2]
[419936863,1775523042418,-500.0,0.00013698,2]
[419936864,1775523042429,-500.0,0.00013698,2]
[419936865,1775523042439,-500.0,0.00013698,2]
[419936866,1775523042449,-500.0,0.00013698,2]
[419936867,1775523042460,-500.0,0.00013698,2]
[419936868,1775523042471,-500.0,0.00013698,2]
[419936869,1775523042482,-500.0,0.00013698,2]
[419936870,1775523042492,-500.0,0.00013698,2]
[419936871,1775523042503,-500.0,0.00013698,2]
[419936872,1775523042512,-500.0,0.00013698,2]
[419936873,1775523042523,-500.0,0.00013698,2]
[419936874,1775523042534,-500.0,0.00013698,2]
[419936875,1775523042544,-500.0,0.00013698,2]
[419936876,1775523042553,-500.0,0.00013698,2]
[419936877,1775523042564,-500.0,0.00013698,2]
[419936878,1775523042574,-500.0,0.00013698,2]
[419936879,1775523042585,-502.76097898,0.00013698,2]
[419936880,1775523042597,-500.0,0.00013698,2]
[419936881,1775523042607,-500.0,0.00013698,2]
[419936882,1775523042616,-500.0,0.00013698,2]
[419936883,1775523042626,-500.0,0.00013698,2]
[419936884,1775523042637,-500.0,0.00013698,2]
[419936885,1775523042647,-500.0,0.00013698,2]
[419936886,1775523042656,-500.0,0.00013698,2]
[419936887,1775523042666,-500.0,0.00013698,2]
[419936888,1775523042677,-500.0,0.00013698,2]
[419936889,1775523042687,-500.0,0.00013698,2]
[419936890,1775523042697,-500.0,0.00013698,2]
[419936891,1775523042706,-500.0,0.00013698,2]
[419936892,1775523042716,-500.0,0.00013698,2]
[419936893,1775523042727,-500.0,0.00013698,2]
[419936894,1775523042737,-500.0,0.00013698,2]
[419936895,1775523042746,-500.0,0.00013698,2]
[419936896,1775523042754,-500.0,0.00013698,2]
[419936897,1775523042763,-500.0,0.00013698,2]
[419936900,1775523042772,-597.09699837,0.00013698,2]
[419936901,1775523042782,-500.0,0.00013698,2]
[419936903,1775523042791,-500.0,0.00013698,2]
[419936905,1775523042801,-500.0,0.00013698,2]
[419936906,1775523042810,-500.0,0.00013698,2]
[419936907,1775523042819,-500.0,0.00013698,2]
[419936908,1775523042828,-500.0,0.00013698,2]
[419936909,1775523042838,-500.0,0.00013698,2]
[419936910,1775523042847,-500.0,0.00013698,2]
[419936911,1775523042857,-500.0,0.00013698,2]
[419936912,1775523042866,-500.0,0.00013698,2]
[419936913,1775523042875,-500.0,0.00013698,2]
[419936915,1775523042884,-500.0,0.00013698,2]
[419936917,1775523042894,-155.0,0.00013698,2]
[419936919,1775523042903,-500.0,0.00013698,2]
[419936920,1775523042911,-500.0,0.00013698,2]
[419936922,1775523042920,-500.0,0.00013698,2]
[419936924,1775523042930,-500.0,0.00013698,2]
[419936925,1775523042940,-500.0,0.00013698,2]
[419936927,1775523042949,-500.0,0.00013698,2]
[419936929,1775523042958,-500.0,0.00013698,2]
[419936931,1775523042968,-500.0,0.00013698,2]
[419936932,1775523042977,-500.0,0.00013698,2]
[419936934,1775523042986,-500.0,0.00013698,2]
[419936936,1775523042996,-500.0,0.00013698,2]
[419936938,1775523043005,-500.0,0.00013698,2]
[419936940,1775523043014,-500.0,0.00013698,2]
[419936942,1775523043023,-500.0,0.00013698,2]
[419936943,1775523043034,-500.0,0.00013698,2]
[419936944,1775523043044,-500.0,0.00013698,2]
[419936945,1775523043054,-500.0,0.00013698,2]
[419936946,1775523043064,-500.0,0.00013698,2]
[419936947,1775523043074,-500.0,0.00013698,2]
[419936948,1775523043084,-500.0,0.00013698,2]
[419936949,1775523043093,-500.0,0.00013698,2]
[419936950,1775523043104,-500.0,0.00013698,2]
[419936951,1775523043114,-500.0,0.00013698,2]
[419936952,1775523043124,-500.0,0.00013698,2]
[419936953,1775523043133,-500.0,0.00013698,2]
[419936954,1775523043144,-500.0,0.00013698,2]
[419936955,1775523043153,-500.0,0.00013698,2]
[419936957,1775523043163,-500.0,0.00013698,2]
[419936959,1775523043172,-500.0,0.00013698,2]
[419936960,1775523043182,-500.0,0.00013698,2]
[419936961,1775523043191,-500.0,0.00013698,2]
[419936962,1775523043200,-500.0,0.00013698,2]
[419936963,1775523043209,-500.0,0.00013698,2]
[419936964,1775523043626,-500.0,0.00013698,2]
[419936965,1775523043636,-500.0,0.00013698,2]
[419936966,1775523043647,-500.0,0.00013698,2]
[419936967,1775523043656,-500.0,0.00013698,2]
[419936969,1775523043666,-500.0,0.00013698,2]
[419936971,1775523043675,-500.0,0.00013698,2]
[419936972,1775523043685,-500.0,0.00013698,2]
[419936974,1775523043694,-500.0,0.00013698,2]
[419936976,1775523043703,-500.0,0.00013698,2]
[419936978,1775523043712,-500.0,0.00013698,2]
[419936980,1775523043721,-500.0,0.00013698,2]
[419936981,1775523043730,-500.0,0.00013698,2]
[419936982,1775523043740,-500.0,0.00013698,2]
[419936983,1775523043749,-500.0,0.00013698,2]
[419936984,1775523043759,-500.0,0.00013698,2]
[419936985,1775523043768,-500.0,0.00013698,2]
[419936986,1775523043778,-500.0,0.00013698,2]
[419936987,1775523043789,-500.0,0.00013698,2]
[419936988,1775523043798,-500.0,0.00013698,2]
[419936989,1775523043808,-500.0,0.00013698,2]
[419936990,1775523043818,-500.0,0.00013698,2]
[419936992,1775523043827,-500.0,0.00013698,2]
[419936994,1775523043837,-500.0,0.00013698,2]
[419936995,1775523043846,-348.586408,0.00013698,2]
[419936996,1775523043855,-500.0,0.00013698,2]
[419936997,1775523043865,-500.0,0.00013698,2]
[419936998,1775523043874,-500.0,0.00013698,2]
[419937000,1775523043883,-500.0,0.00013698,2]
[419937002,1775523043892,-500.0,0.00013698,2]
[419937003,1775523043902,-597.32595487,0.00013698,2]
[419937004,1775523043911,-500.0,0.00013698,2]
[419937005,1775523043920,-500.0,0.00013698,2]
[419937006,1775523043929,-500.0,0.00013698,2]
[419937007,1775523043939,-500.0,0.00013698,2]
[419937008,1775523043948,-500.0,0.00013698,2]
[419937009,1775523043958,-500.0,0.00013698,2]
[419937010,1775523043967,-500.0,0.00013698,2]
[419937011,1775523043976,-503.57594394,0.00013698,2]
[419937012,1775523043986,-500.0,0.00013698,2]
[419937013,1775523043995,-500.0,0.00013698,2]
[419937014,1775523044004,-559.50723655,0.00013698,2]
[419937015,1775523044014,-180.22082836,0.00013699,2]
[419937016,1775523044024,-150.0,0.00013699,2]
[419937017,1775523044035,-150.0,0.00013699,2]
[419937018,1775523044044,-150.0,0.00013699,2]
[419937019,1775523044054,-158.36,0.00013699,2]
[419937020,1775523044064,-159.49,0.00013699,2]
[419937021,1775523044076,-2000.0,0.00013735,2]
[419937022,1775523044087,-152.0,0.00013743,3]
[419937023,1775523044096,-895.5198952,0.0001379,2]
[419937024,1775523044107,-433.0,0.00013833,2]
[419937025,1775523044117,-532.4329243,0.00013837,2]
[419937026,1775523044128,-1202.2204262,0.00013837,2]
[419937027,1775523044138,-587.0,0.0001388,2]
[419937028,1775523044149,-312.14623761,0.000139,2]
[419937029,1775523044160,-157.0,0.000139,2]
[419937030,1775523044170,-157.0,0.000139,2]
[419937031,1775523044181,-160.97,0.000139,2]
[419937032,1775523044193,-1399.15663833,0.00013912,2]
[419937033,1775523044203,-160.0,0.00013921,2]
[419937034,1775523044212,-160.0,0.00013921,7]
[419937035,1775523044222,-265.860397,0.00013921,7]
[419937036,1775523044233,-254.438209,0.00013921,2]
[419937037,1775523044243,-348.876419,0.00013921,2]
[419937038,1775523044254,-371.720795,0.00013921,7]
[419937039,1775523044263,-151.0,0.00013922,2]
[419937040,1775523044273,-151.0,0.00013922,2]
[419937041,1775523044284,-221.392958,0.00013922,2]
[419937042,1775523044293,-151.0,0.00013922,2]
[419937043,1775523044304,-221.392958,0.00013922,2]
[419937044,1775523044314,-151.0,0.00013922,2]
[419937045,1775523044323,-151.0,0.00013922,2]
[419937046,1775523044335,-221.392958,0.00013922,2]
[419937047,1775523044344,-151.0,0.00013922,2]
[419937048,1775523044354,-221.392958,0.00013922,2]
[419937049,1775523044363,-218.260658,0.00013922,2]
[419937050,1775523044372,-218.260658,0.00013922,2]
[419937051,1775523044381,-218.260658,0.00013922,2]
[419937052,1775523044391,-218.260658,0.00013922,2]
[419937053,1775523044400,-151.0,0.00013922,2]
[419937054,1775523044409,-151.0,0.00013922,2]
[419937055,1775523044418,-234.076238,0.00013922,2]
[419937056,1775523044427,-151.0,0.00013922,2]
[419937057,1775523044436,-151.0,0.00013922,2]
[419937058,1775523044446,-234.076238,0.00013922,2]
[419937059,1775523044455,-151.0,0.00013922,2]
[419937060,1775523044464,-234.076238,0.00013922,2]
[419937061,1775523044473,-234.076238,0.00013922,2]
[419937062,1775523044483,-151.0,0.00013922,2]
[419937063,1775523044492,-428.470905,0.00013922,2]
[419937064,1775523044501,-151.0,0.00013922,2]
[419937065,1775523044510,-428.470905,0.00013922,2]